Workbook

Sheet Presupuesto
A2: Presupuesto 2020 | B2: Quincenal | C2: Mensual | D2: Cada 3 meses | E2: Anual
A3: Ingresos
A4: Ingresos Brutos - Esposo | E4: 31500
A5: Ingresos Brutos - Esposa | E5: 31500
A6: Ingresos Brutos Total - Hogar | B6: =C6/2 -> 2625 | C6: =E6/12 -> 5250 | D6: =C6*3 -> 15750 | E6: =E4+E5 -> 63000
A7: Taxes Federales (12%) | E7: =E6*0.12 -> 7560
A8: Taxes de Estado NJ (3%) | E8: =E6*0.03 -> 1890
A9: Taxes Total | E9: =E7+E8 -> 9450
A10: Ingreso Despues de Deducciones- Hogar | B10: =E10/24 -> 2231.25 | C10: =E10/12 -> 4462.5 | D10: =E10/4 -> 13387.5 | E10: =E6-E9 -> 53550
A12: Gastos | F12: Fecha de Vencimiento
A13: Diezmo (10% de Ingresos Brutos) | B13: =E13/24 -> 262.5 | C13: =B13*2 -> 525 | D13: =E13/4 -> 1575 | E13: =E6*0.1 -> 6300 | F13: Varía; 1ero y 15 de cada mes
A14: Gasolina | B14: 100 | C14: 200 | D14: =C14*3 -> 600 | E14: =B14*26 -> 2600 | F14: Varía; 1ero y 15 de cada mes
A15: Mercado | B15: 200 | C15: 400 | D15: 1200 | E15: 5200 | F15: Varía; 1ero y 15 de cada mes
A16: Comer Afuera | B16: 50 | C16: 100 | D16: 300 | E16: 1300 | F16: Varía; 1ero y 15 de cada mes
A17: Entretenimiento | B17: 50 | C17: 100 | D17: 300 | E17: 1300 | F17: Varía; 1ero y 15 de cada mes
A18: Miscelaneo | B18: 50 | C18: 100 | D18: 300 | E18: 1300 | F18: Varía; 1ero y 15 de cada mes
A19: Electricidad/Gas | B19: =E19/26 -> 46.15384615 | C19: 100 | D19: 300 | E19: =C19*12 -> 1200 | F19: 1 de cada mes
A20: Telefono Mobil | B20: =C20/2 -> 50 | C20: 100 | D20: 300 | E20: 1200 | F20: 1 de cada mes
A21: Renta | B21: 600 | C21: 1200 | D21: 3600 | E21: 14400 | F21: 5 de cada mes
A22: Tarjeta de Credito 1 | B22: 10 | C22: 20 | D22: 60 | E22: 240 | F22: 8 de cada mes
A23: Tarjeta de Credito 2 | B23: 25 | C23: 50 | D23: 150 | E23: 600 | F23: 14 de cada mes
A24: Prestamo de Carro | B24: 200 | C24: 400 | D24: 1200 | E24: 4800 | F24: 20 de cada mes
A25: Internet/Cable | B25: =E25/26 -> 64.61538462 | C25: 140 | D25: 420 | E25: 1680 | F25: 21 de cada mes
A26: Seguro Medico | B26: =C26/2 -> 100 | C26: 200 | D26: 600 | E26: 2400 | F26: 22 de cada mes
A27: Seguro de Carros | B27: =E27/26 -> 92.30769231 | C27: 200 | D27: 600 | E27: 2400 | F27: 25 de cada mes
A28: Agua | B28: 18.46153846 | C28: =D28/3 -> 40 | D28: 120 | E28: 480 | F28: Enero 15; Abril 15; Julio 15; Octubre 15
A29: Gastos Total: | B29: =SUM(B14:B28) -> 1656.538462 | C29: 3350 | D29: 10050 | E29: 41100
A31: INGRESO NETO: | B31: =B10-B29 -> 574.7115385 | C31: 1112.5 | D31: 3337.5 | E31: 12450

Sheet Riqueza Neta
B1: Junio 1, 2020 | C1: Julio 1, 2020 | D1: Agosto 1, 2020 | E1: Septiembre 1, 2020 | F1: Octubre 1, 2020 | G1: Noviembre 1, 2020 | H1: Diciembre 1, 2020
A2: BIENES
A3: Casa | B3: 150000
A4: Carro 1 | B4: 10000
A5: Carro 2 | B5: 8000
A6: Ahorros | B6: 1000
A7: BIENES TOTAL | B7: =SUM(B3:B6) -> 169000
A9: DEUDAS
A10: Telefonos Mobil | B10: 1000
A11: Casa | B11: 130000
A12: Carro 1 | B12: 15000
A13: Carro 2 | B13: 12000
A14: Tarjeta de Credito 1 | B14: 2000
A15: Tarjeta de Credito 2 | B15: 3000
A16: Prestamo de Amigo | B16: 5000
A17: Prestamo de Familia | B17: 10000
A19: DEUDAS TOTAL | B19: =SUM(B10:B18) -> 178000
A21: RIQUEZA NETA | B21: =B7-B19 -> -9000

Sheet Comité de presupuesto
A1: Fechas | B1: Julio 1, 2020 | C1: Julio 14, 2020 | F1: Fechas | G1: Julio 15, 2020 | H1: Julio 31, 2020
A2: Dinero en el banco | B2: 2231.25 | F2: Dinero en el banco | G2: 2231.25
A3: Transacciones pendientes | B3: 0 | F3: Transacciones pendientes | G3: 0
A4: Total en el banco | B4: =B2-B3 -> 2231.25 | F4: Total en el banco | G4: =G2-G3 -> 2231.25
B6: Planeado | C6: Actual | D6: Diferencia | G6: Planeado | H6: Actual | I6: Diferencia
A7: Diezmo/honra a Dios | B7: 262.5 | F7: Diezmo/honra a Dios | G7: 262.5
A8: Gasolina | B8: 100 | F8: Gasolina | G8: 100
A9: Mercado | B9: 200 | F9: Mercado | G9: 200
A10: Comer Afuera | B10: 50 | F10: Comer Afuera | G10: 50
A11: Entretenimiento | B11: 50 | F11: Entretenimiento | G11: 50
A12: Miscelaneo | B12: 50 | F12: Miscelaneo | G12: 50
A13: Electricidad/Gas | B13: 100 | F13: Prestamo de Carro | G13: 400
A14: Telefono Mobil | B14: 100 | F14: Internet/Cable | G14: 140
A15: Renta | B15: 1200 | F15: Seguro Medico | G15: 200
A16: Tarjeta de Credito 1 | B16: 20 | F16: Seguro de Carros | G16: 200
A17: Tarjeta de Credito 2 | B17: 50 | F17: Agua | G17: 120
B20: =SUM(B7:B19) -> 2182.5 | C20: 0 | D20: 0 | G20: =SUM(G7:G19) -> 1772.5 | H20: 0 | I20: 0
A22: Pala | B22: =B4-B20 -> 48.75 | F22: Pala | G22: =G4-G20 -> 458.75

Sheet Bola de Nieve
B1: Telefonos Mobil | C1: Tarjeta de Credito 1 | D1: Tarjeta de Credito 2 | E1: Prestamo de Amigo | F1: Prestamo de Familia | G1: Carro 2 | H1: Carro 1 | I1: Casa | J1: TOTAL:
A2: Junio 15, 2020 | B2: 1000 | C2: 2000 | D2: 3000 | E2: 5000 | F2: 10000 | G2: 12000 | H2: 15000 | I2: 130000 | J2: =SUM(B2:I2) -> 178000
A3: Julio 1, 2020 | B3: 500 | C3: 1900 | D3: 2900 | E3: 4900 | F3: 9900 | G3: 11900 | H3: 14900 | I3: 129000 | J3: 175900
A4: Julio 15, 2020 | B4: 0 | C4: 1500 | D4: 2900 | E4: 4900 | F4: 9900 | G4: 11900 | H4: 14900 | I4: 129000 | J4: 175000
A5: Agosto 1, 2020 | B5: 0 | C5: 500 | D5: 2800 | E5: 4800 | F5: 9800 | G5: 11800 | H5: 14800 | I5: 128000 | J5: 172500
A6: Agosto 15, 2020 | B6: 0 | C6: 0 | D6: 2000 | E6: 4800 | F6: 9800 | G6: 11800 | H6: 14800 | I6: 128000 | J6: 171200
A7: Septiembre 1, 2020 | B7: 0 | C7: 0 | D7: 0 | E7: 4700 | F7: 9700 | G7: 11700 | H7: 14700 | I7: 127000 | J7: 167800
A8: Septiembre 15, 2020 | B8: 0 | C8: 0 | D8: 0 | E8: 2500 | F8: 9700 | G8: 11700 | H8: 14700 | I8: 127000 | J8: 165600
A9: Octubre 1, 2020 | B9: 0 | C9: 0 | D9: 0 | E9: 500 | F9: 9600 | G9: 11600 | H9: 14600 | I9: 126000 | J9: 162300
A10: Octubre 15, 2020 | B10: 0 | C10: 0 | D10: 0 | E10: 0 | F10: 7000 | G10: 11600 | H10: 14600 | I10: 126000 | J10: 159200
A11: Noviembre 1, 2020 | B11: 0 | C11: 0 | D11: 0 | E11: 0 | F11: 4000 | G11: 11500 | H11: 14500 | I11: 125000 | J11: 155000
A12: Noviembre 15, 2020 | B12: 0 | C12: 0 | D12: 0 | E12: 0 | F12: 0 | G12: 11500 | H12: 14500 | I12: 125000 | J12: 151000
A13: Diciembre 1, 2020 | B13: 0 | C13: 0 | D13: 0 | E13: 0 | F13: 0 | G13: 5000 | H13: 14400 | I13: 124000 | J13: 143400
A14: Diciembre 15, 2020 | B14: 0 | C14: 0 | D14: 0 | E14: 0 | F14: 0 | G14: 0 | H14: 12000 | I14: 124000 | J14: 136000
A15: Enero 1, 2021 | B15: 0 | C15: 0 | D15: 0 | E15: 0 | F15: 0 | G15: 0 | H15: 7500 | I15: 123000 | J15: 130500
A16: Enero 15, 2021 | B16: 0 | C16: 0 | D16: 0 | E16: 0 | F16: 0 | G16: 0 | H16: 0 | I16: 112000 | J16: 112000

Sheet Sueños y Metas
A1: Sueños y Metas
A2: Abrir una empresa
A3: Comprar una casa
A4: Tener buen credito
A5: Comprar un carro
A6: Tarjeta de Credito 1
A7: Pagar todas deudas
A8: Ir a la universidad
A9: Prestamo de Carro
A10: Educacion de mis hijos
A11: Apoyar a nuestros padres
A12: Vacaciones por todo el mundo

Sheet Cuentas
A1: Cuenta | B1: Nombre de Usuario | C1: Contraseña | D1: Sitio Web
A2: Gymnasio | B2: oveja1 | C2: $DiosAyudame | D2: www.oveja1.com
A3: Electricidad/Gas | B3: oveja2 | C3: $DiosAyudame | D3: www.oveja2.com
A4: Telefono Mobil | B4: oveja3 | C4: $DiosAyudame | D4: www.oveja3.com
A5: Hipoteca/Renta | B5: oveja4 | C5: $DiosAyudame | D5: www.oveja1.com
A6: Tarjeta de Credito 1 | B6: oveja5 | C6: $DiosAyudame | D6: www.oveja2.com
A7: Seguro de Casa | B7: oveja6 | C7: $DiosAyudame | D7: www.oveja4.com
A8: Tarjeta de Credito 2 | B8: oveja7 | C8: $DiosAyudame | D8: www.oveja5.com
A9: Prestamo de Carro | B9: oveja8 | C9: $DiosAyudame | D9: www.oveja2.com
A10: Internet/Cable | B10: oveja9 | C10: $DiosAyudame | D10: www.oveja6.com
A11: Seguro Medico | B11: oveja10 | C11: $DiosAyudame | D11: www.oveja7.com
A12: Seguro de Carros | B12: oveja11 | C12: $DiosAyudame | D12: www.oveja8.com
A13: Agua | B13: oveja12 | C13: $DiosAyudame | D13: www.oveja9.com
A14: Taxes de Propiedad | B14: oveja13 | C14: $DiosAyudame | D14: www.oveja10.com
